[Event "Titled Tuesday Blitz May 03 Late 2022"]
[White "Vujic, Mihailo"]
[Black "Piesik, Piotr"]
[WhiteFideId "918873"]
[BlackFideId "1136194"]
[WhiteElo "2256"]
[BlackElo "2190"]
[Result "0-1"]
[Round "03"]
[TimeControl "180+1"]
[Date "2022.05.03"]
[WhiteClock "0:00:03"]
[BlackClock "0:00:06"]

1. e4 {[%clk 0:02:59]}  g6 {[%clk 0:02:53]} 2. d4 {[%clk 0:02:58]}  Bg7 {[%clk 0:02:53]} 3. Nc3 {[%clk 0:02:59]}  c6 {[%clk 0:02:52]} 4. Nf3 {[%clk 0:02:58]}  d6 {[%clk 0:02:52]} 5. a4 {[%clk 0:02:45]}  Nf6 {[%clk 0:02:52]} 6. Bg5 {[%clk 0:02:43]}  O-O {[%clk 0:02:52]} 7. Qd2 {[%clk 0:02:42]}  Bg4 {[%clk 0:02:51]} 8. Bh6 {[%clk 0:02:41]}  Nbd7 {[%clk 0:02:50]} 9. Bxg7 {[%clk 0:02:40]}  Kxg7 {[%clk 0:02:51]} 10. Be2 {[%clk 0:02:40]}  e5 {[%clk 0:02:50]} 11. dxe5 {[%clk 0:02:36]}  dxe5 {[%clk 0:02:50]} 12. h3 {[%clk 0:02:31]}  Bxf3 {[%clk 0:02:50]} 13. Bxf3 {[%clk 0:02:31]}  Qe7 {[%clk 0:02:47]} 14. g4 {[%clk 0:02:23]}  Nc5 {[%clk 0:02:43]} 15. h4 {[%clk 0:02:21]}  Rfd8 {[%clk 0:02:42]} 16. Qe3 {[%clk 0:02:21]}  Ne6 {[%clk 0:02:33]} 17. h5 {[%clk 0:02:16]}  Nf4 {[%clk 0:02:26]} 18. hxg6 {[%clk 0:02:13]}  hxg6 {[%clk 0:02:26]} 19. Ne2 {[%clk 0:02:11]}  Qb4+ {[%clk 0:02:16]} 20. Kf1 {[%clk 0:01:58]}  Qxb2 {[%clk 0:02:14]} 21. Re1 {[%clk 0:01:52]}  Rh8 {[%clk 0:02:04]} 22. Nxf4 {[%clk 0:01:46]}  Rxh1+ {[%clk 0:02:03]} 23. Bxh1 {[%clk 0:01:47]}  exf4 {[%clk 0:02:03]} 24. Qxf4 {[%clk 0:01:46]}  Qxc2 {[%clk 0:01:52]} 25. e5 {[%clk 0:01:45]}  Nd5 {[%clk 0:01:51]} 26. Bxd5 {[%clk 0:01:42]}  Qd3+ {[%clk 0:01:51]} 27. Kg1 {[%clk 0:01:40]}  Qxd5 {[%clk 0:01:50]} 28. Qf6+ {[%clk 0:01:40]}  Kg8 {[%clk 0:01:50]} 29. e6 {[%clk 0:01:41]}  Re8 {[%clk 0:01:38]} 30. e7 {[%clk 0:01:22]}  c5 {[%clk 0:01:25]} 31. Re3 {[%clk 0:01:04]}  Qd1+ {[%clk 0:01:22]} 32. Kh2 {[%clk 0:01:03]}  Qd4 {[%clk 0:01:16]} 33. Qh4 {[%clk 0:00:52]}  c4 {[%clk 0:00:56]} 34. Rh3 {[%clk 0:00:47]}  Qe5+ {[%clk 0:00:48]} 35. Kg2 {[%clk 0:00:35]}  Rxe7 {[%clk 0:00:48]} 36. Qh7+ {[%clk 0:00:32]}  Kf8 {[%clk 0:00:48]} 37. Rf3 {[%clk 0:00:31]}  Qg7 {[%clk 0:00:43]} 38. Qh2 {[%clk 0:00:30]}  Re8 {[%clk 0:00:42]} 39. Qc7 {[%clk 0:00:27]}  Kg8 {[%clk 0:00:38]} 40. Qxc4 {[%clk 0:00:26]}  Qf8 {[%clk 0:00:32]} 41. Rf6 {[%clk 0:00:22]}  Kg7 {[%clk 0:00:22]} 42. g5 {[%clk 0:00:23]}  Qe7 {[%clk 0:00:20]} 43. Qc3 {[%clk 0:00:21]}  Qe5 {[%clk 0:00:20]} 44. Qd2 {[%clk 0:00:18]}  Re6 {[%clk 0:00:18]} 45. Rf3 {[%clk 0:00:17]}  Rd6 {[%clk 0:00:17]} 46. Qc1 {[%clk 0:00:14]}  Rd5 {[%clk 0:00:17]} 47. Rg3 {[%clk 0:00:13]}  Qe4+ {[%clk 0:00:18]} 48. Kh2 {[%clk 0:00:13]}  Qh4+ {[%clk 0:00:17]} 49. Kg2 {[%clk 0:00:13]}  Qxa4 {[%clk 0:00:17]} 50. Qc3+ {[%clk 0:00:13]}  Qd4 {[%clk 0:00:17]} 51. Qc7 {[%clk 0:00:11]}  Qe4+ {[%clk 0:00:17]} 52. Kh2 {[%clk 0:00:11]}  Rd1 {[%clk 0:00:17]} 53. Qc3+ {[%clk 0:00:07]}  Qd4 {[%clk 0:00:18]} 54. Qf3 {[%clk 0:00:05]}  Rd2 {[%clk 0:00:10]} 55. Rg2 {[%clk 0:00:04]}  a5 {[%clk 0:00:10]} 56. Kg3 {[%clk 0:00:03]}  Qe5+ {[%clk 0:00:09]} 57. Kh3 {[%clk 0:00:03]}  Rd4 {[%clk 0:00:06]} 0-1


[Site "https://www.chess.com"]

[Event "Titled Tuesday Blitz May 03 Late 2022"]
[White "Weber, Samuel"]
[Black "Simonovic, Miroslav"]
[WhiteFideId "12924008"]
[BlackFideId "919152"]
[WhiteElo "2215"]
[BlackElo "2043"]
[Result "1-0"]
[Round "03"]
[TimeControl "180+1"]
[Date "2022.05.03"]
[WhiteClock "0:00:47"]
[BlackClock "0:00:07"]

1. b3 {[%clk 0:03:00]}  c5 {[%clk 0:03:00]} 2. Bb2 {[%clk 0:03:00]}  Nc6 {[%clk 0:03:00]} 3. g3 {[%clk 0:03:01]}  d6 {[%clk 0:03:01]} 4. Bg2 {[%clk 0:03:01]}  e5 {[%clk 0:03:01]} 5. c4 {[%clk 0:03:02]}  g6 {[%clk 0:03:02]} 6. d3 {[%clk 0:03:01]}  Bg7 {[%clk 0:03:02]} 7. Nf3 {[%clk 0:03:01]}  Nge7 {[%clk 0:03:03]} 8. O-O {[%clk 0:03:02]}  O-O {[%clk 0:03:04]} 9. Ne1 {[%clk 0:03:00]}  d5 {[%clk 0:03:00]} 10. cxd5 {[%clk 0:02:59]}  Nxd5 {[%clk 0:03:01]} 11. Nc3 {[%clk 0:03:00]}  Be6 {[%clk 0:03:01]} 12. Nc2 {[%clk 0:02:58]}  Rc8 {[%clk 0:02:47]} 13. Qd2 {[%clk 0:02:45]}  Qd7 {[%clk 0:02:37]} 14. Ne3 {[%clk 0:02:20]}  Nce7 {[%clk 0:02:35]} 15. Rfc1 {[%clk 0:02:16]}  b6 {[%clk 0:02:29]} 16. Nexd5 {[%clk 0:02:09]}  Nxd5 {[%clk 0:02:29]} 17. Ne4 {[%clk 0:02:01]}  h6 {[%clk 0:02:27]} 18. Qe1 {[%clk 0:01:49]}  f5 {[%clk 0:02:25]} 19. Nd2 {[%clk 0:01:49]}  Rfe8 {[%clk 0:01:26]} 20. Nc4 {[%clk 0:01:27]}  Bf7 {[%clk 0:01:26]} 21. Rd1 {[%clk 0:01:17]}  f4 {[%clk 0:01:19]} 22. Rac1 {[%clk 0:01:13]}  g5 {[%clk 0:01:12]} 23. Qf1 {[%clk 0:01:11]}  h5 {[%clk 0:01:03]} 24. Be4 {[%clk 0:01:10]}  Nf6 {[%clk 0:00:57]} 25. Qg2 {[%clk 0:00:57]}  Nxe4 {[%clk 0:00:49]} 26. dxe4 {[%clk 0:00:57]}  Qb5 {[%clk 0:00:28]} 27. gxf4 {[%clk 0:00:52]}  Bxc4 {[%clk 0:00:25]} 28. Rxc4 {[%clk 0:00:51]}  gxf4 {[%clk 0:00:20]} 29. Kh1 {[%clk 0:00:50]}  Qc6 {[%clk 0:00:15]} 30. Rg1 {[%clk 0:00:49]}  Qf6 {[%clk 0:00:14]} 31. Rc3 {[%clk 0:00:46]}  Re6 {[%clk 0:00:12]} 32. Rh3 {[%clk 0:00:46]}  Kf7 {[%clk 0:00:09]} 33. Rxh5 {[%clk 0:00:45]}  Rh8 {[%clk 0:00:09]} 34. Rf5 {[%clk 0:00:45]}  Rxh2+ {[%clk 0:00:07]} 35. Qxh2 {[%clk 0:00:45]}  Qxf5 {[%clk 0:00:06]} 36. exf5 {[%clk 0:00:45]}  Rh6 {[%clk 0:00:07]} 37. Rxg7+ {[%clk 0:00:45]}  Kxg7 {[%clk 0:00:06]} 38. f6+ {[%clk 0:00:46]}  Kg6 {[%clk 0:00:06]} 39. Qxh6+ {[%clk 0:00:44]}  Kxh6 {[%clk 0:00:07]} 40. Bxe5 {[%clk 0:00:44]}  Kg6 {[%clk 0:00:07]} 41. f3 {[%clk 0:00:43]}  Kf7 {[%clk 0:00:07]} 42. Kh2 {[%clk 0:00:43]}  b5 {[%clk 0:00:07]} 43. Kh3 {[%clk 0:00:43]}  a5 {[%clk 0:00:06]} 44. Kg4 {[%clk 0:00:44]}  c4 {[%clk 0:00:06]} 45. bxc4 {[%clk 0:00:44]}  b4 {[%clk 0:00:06]} 46. Kf5 {[%clk 0:00:44]}  a4 {[%clk 0:00:06]} 47. c5 {[%clk 0:00:44]}  b3 {[%clk 0:00:06]} 48. axb3 {[%clk 0:00:44]}  axb3 {[%clk 0:00:06]} 49. c6 {[%clk 0:00:45]}  Ke8 {[%clk 0:00:05]} 50. Bb2 {[%clk 0:00:46]}  Kd8 {[%clk 0:00:04]} 51. Kxf4 {[%clk 0:00:47]}  Kc7 {[%clk 0:00:04]} 52. f7 {[%clk 0:00:47]}  Kxc6 {[%clk 0:00:04]} 53. f8=Q {[%clk 0:00:48]}  Kd5 {[%clk 0:00:05]} 54. Qf5+ {[%clk 0:00:48]}  Kc4 {[%clk 0:00:04]} 55. Qe4+ {[%clk 0:00:48]}  Kb5 {[%clk 0:00:04]} 56. Qd5+ {[%clk 0:00:48]}  Kb6 {[%clk 0:00:05]} 57. Qxb3+ {[%clk 0:00:48]}  Kc7 {[%clk 0:00:06]} 58. Be5+ {[%clk 0:00:48]}  Kd7 {[%clk 0:00:06]} 59. Qd5+ {[%clk 0:00:48]}  Ke7 {[%clk 0:00:06]} 60. Qd6+ {[%clk 0:00:49]}  Kf7 {[%clk 0:00:06]} 61. Qf6+ {[%clk 0:00:49]}  Ke8 {[%clk 0:00:07]} 62. Qg7 {[%clk 0:00:47]}  Kd8 {[%clk 0:00:07]} 63. Ke4 {[%clk 0:00:46]}  Ke8 {[%clk 0:00:07]} 64. Kd5 {[%clk 0:00:47]}  Kd8 {[%clk 0:00:07]} 65. Kd6 {[%clk 0:00:47]} 1-0


[Site "https://www.chess.com"]

[Event "Titled Tuesday Blitz May 03 Late 2022"]
[White "Winkels, Marcel"]
[Black "Kim, Sergey"]
[WhiteFideId "1003887"]
[BlackFideId "13700570"]
[WhiteElo "1900"]
[BlackElo "2532"]
[Result "0-1"]
[Round "03"]
[TimeControl "180+1"]
[Date "2022.05.03"]
[WhiteClock "0:00:02"]
[BlackClock "0:01:23"]

1. e4 {[%clk 0:03:00]}  e5 {[%clk 0:02:59]} 2. Nf3 {[%clk 0:02:59]}  Nc6 {[%clk 0:03:00]} 3. Bc4 {[%clk 0:03:00]}  Bc5 {[%clk 0:02:59]} 4. b4 {[%clk 0:02:59]}  Bxb4 {[%clk 0:02:58]} 5. c3 {[%clk 0:02:58]}  Ba5 {[%clk 0:02:59]} 6. d4 {[%clk 0:02:58]}  d6 {[%clk 0:02:59]} 7. O-O {[%clk 0:02:43]}  Bb6 {[%clk 0:02:58]} 8. dxe5 {[%clk 0:02:34]}  dxe5 {[%clk 0:02:58]} 9. Qxd8+ {[%clk 0:02:33]}  Nxd8 {[%clk 0:02:56]} 10. Nxe5 {[%clk 0:02:32]}  Be6 {[%clk 0:02:56]} 11. Be2 {[%clk 0:02:19]}  Nf6 {[%clk 0:02:53]} 12. Nd2 {[%clk 0:02:16]}  O-O {[%clk 0:02:51]} 13. Bf3 {[%clk 0:02:09]}  Re8 {[%clk 0:02:47]} 14. Nec4 {[%clk 0:02:08]}  Bc5 {[%clk 0:02:46]} 15. e5 {[%clk 0:02:06]}  Nd5 {[%clk 0:02:44]} 16. Bb2 {[%clk 0:01:53]}  Nc6 {[%clk 0:02:39]} 17. Rab1 {[%clk 0:01:42]}  Rad8 {[%clk 0:02:36]} 18. Ba1 {[%clk 0:01:39]}  Bb6 {[%clk 0:02:30]} 19. Nxb6 {[%clk 0:01:37]}  axb6 {[%clk 0:02:25]} 20. Rfe1 {[%clk 0:01:07]}  Nf4 {[%clk 0:02:23]} 21. Nb3 {[%clk 0:00:59]}  Nd3 {[%clk 0:02:18]} 22. Re2 {[%clk 0:00:48]}  Ndxe5 {[%clk 0:02:17]} 23. Be4 {[%clk 0:00:35]}  Nc4 {[%clk 0:02:12]} 24. Nd4 {[%clk 0:00:30]}  Nxd4 {[%clk 0:01:54]} 25. cxd4 {[%clk 0:00:29]}  c6 {[%clk 0:01:55]} 26. Bd3 {[%clk 0:00:27]}  Bd5 {[%clk 0:01:47]} 27. Rxe8+ {[%clk 0:00:21]}  Rxe8 {[%clk 0:01:46]} 28. h3 {[%clk 0:00:18]}  b5 {[%clk 0:01:42]} 29. Bc3 {[%clk 0:00:14]}  g6 {[%clk 0:01:36]} 30. Kf1 {[%clk 0:00:14]}  Ra8 {[%clk 0:01:33]} 31. a4 {[%clk 0:00:05]}  Rxa4 {[%clk 0:01:31]} 32. Bc2 {[%clk 0:00:02]}  Ra3 {[%clk 0:01:23]} 0-1


[Site "https://www.chess.com"]

[Event "Titled Tuesday Blitz May 03 Late 2022"]
[White "Zherebtsova, Alexandra"]
[Black "Zakhartsov, Vladimir"]
[WhiteFideId "24129518"]
[BlackFideId "4145097"]
[WhiteElo "2025"]
[BlackElo "2491"]
[Result "0-1"]
[Round "03"]
[TimeControl "180+1"]
[Date "2022.05.03"]
[WhiteClock "0:00:02"]
[BlackClock "0:00:30"]

1. d4 {[%clk 0:02:48]}  Nf6 {[%clk 0:02:59]} 2. Nf3 {[%clk 0:02:48]}  e6 {[%clk 0:02:59]} 3. c4 {[%clk 0:02:48]}  c5 {[%clk 0:02:59]} 4. d5 {[%clk 0:02:48]}  exd5 {[%clk 0:03:00]} 5. cxd5 {[%clk 0:02:47]}  b5 {[%clk 0:03:01]} 6. a4 {[%clk 0:02:29]}  b4 {[%clk 0:02:58]} 7. Nbd2 {[%clk 0:02:08]}  d6 {[%clk 0:02:44]} 8. e4 {[%clk 0:02:00]}  g6 {[%clk 0:02:44]} 9. b3 {[%clk 0:01:57]}  Bg7 {[%clk 0:02:43]} 10. Bb2 {[%clk 0:01:57]}  O-O {[%clk 0:02:43]} 11. Bd3 {[%clk 0:01:57]}  Re8 {[%clk 0:02:35]} 12. O-O {[%clk 0:01:35]}  Nxe4 {[%clk 0:02:31]} 13. Bxg7 {[%clk 0:01:35]}  Nxd2 {[%clk 0:02:31]} 14. Bb2 {[%clk 0:01:30]}  Nxf1 {[%clk 0:02:31]} 15. Bxf1 {[%clk 0:01:28]}  Bg4 {[%clk 0:02:27]} 16. h3 {[%clk 0:01:17]}  Bxf3 {[%clk 0:02:25]} 17. Qxf3 {[%clk 0:01:17]}  Nd7 {[%clk 0:02:25]} 18. Bb5 {[%clk 0:01:13]}  Qe7 {[%clk 0:02:15]} 19. Bc6 {[%clk 0:01:08]}  Rad8 {[%clk 0:02:12]} 20. Qf4 {[%clk 0:01:03]}  f6 {[%clk 0:01:53]} 21. h4 {[%clk 0:01:01]}  Rf8 {[%clk 0:01:48]} 22. h5 {[%clk 0:00:58]}  Ne5 {[%clk 0:01:47]} 23. Bb5 {[%clk 0:00:54]}  f5 {[%clk 0:01:42]} 24. Rf1 {[%clk 0:00:18]}  g5 {[%clk 0:01:39]} 25. Qd2 {[%clk 0:00:16]}  f4 {[%clk 0:01:39]} 26. Ba1 {[%clk 0:00:15]}  f3 {[%clk 0:01:20]} 27. g3 {[%clk 0:00:12]}  Qf6 {[%clk 0:01:19]} 28. Re1 {[%clk 0:00:12]}  Rf7 {[%clk 0:01:07]} 29. Bf1 {[%clk 0:00:12]}  Re7 {[%clk 0:01:04]} 30. Bh3 {[%clk 0:00:11]}  Rde8 {[%clk 0:01:00]} 31. Be6+ {[%clk 0:00:11]}  Rxe6 {[%clk 0:01:00]} 32. dxe6 {[%clk 0:00:11]}  Qxe6 {[%clk 0:01:00]} 33. Qxg5+ {[%clk 0:00:10]}  Kf7 {[%clk 0:00:57]} 34. h6 {[%clk 0:00:09]}  Qf6 {[%clk 0:00:39]} 35. Qh5+ {[%clk 0:00:08]}  Qg6 {[%clk 0:00:37]} 36. Qh4 {[%clk 0:00:07]}  Ng4 {[%clk 0:00:30]} 37. Rxe8 {[%clk 0:00:06]}  Qb1+ {[%clk 0:00:30]} 38. Re1 {[%clk 0:00:02]}  Qxe1# {[%clk 0:00:30]} 0-1


[Site "https://www.chess.com"]

[Event "Titled Tuesday Blitz May 03 Late 2022"]
[White "Zhigalko, Sergei"]
[Black "Rustemov, Alexander"]
[WhiteFideId "13502956"]
[BlackFideId "4119002"]
[WhiteElo "2662"]
[BlackElo "2722"]
[Result "0-1"]
[Round "03"]
[TimeControl "180+1"]
[Date "2022.05.03"]
[WhiteClock "0:00:03"]
[BlackClock "0:00:09"]

1. e4 {[%clk 0:03:00]}  e6 {[%clk 0:03:00]} 2. d4 {[%clk 0:03:00]}  d5 {[%clk 0:03:00]} 3. e5 {[%clk 0:03:00]}  c5 {[%clk 0:03:00]} 4. c3 {[%clk 0:03:01]}  Qb6 {[%clk 0:03:01]} 5. Nf3 {[%clk 0:03:01]}  Bd7 {[%clk 0:03:01]} 6. Be2 {[%clk 0:03:01]}  cxd4 {[%clk 0:02:58]} 7. cxd4 {[%clk 0:03:01]}  Bb5 {[%clk 0:02:58]} 8. Nc3 {[%clk 0:03:01]}  Bxe2 {[%clk 0:02:52]} 9. Nxe2 {[%clk 0:03:02]}  Bb4+ {[%clk 0:02:51]} 10. Kf1 {[%clk 0:03:02]}  Qa6 {[%clk 0:02:48]} 11. g3 {[%clk 0:02:59]}  Nc6 {[%clk 0:02:45]} 12. Kg2 {[%clk 0:02:59]}  Nge7 {[%clk 0:02:44]} 13. a3 {[%clk 0:02:45]}  Nc8 {[%clk 0:02:30]} 14. Bg5 {[%clk 0:02:36]}  Be7 {[%clk 0:02:28]} 15. h4 {[%clk 0:02:33]}  h6 {[%clk 0:02:26]} 16. Bxe7 {[%clk 0:02:33]}  N8xe7 {[%clk 0:02:26]} 17. Rc1 {[%clk 0:02:33]}  Rc8 {[%clk 0:02:23]} 18. Nf4 {[%clk 0:02:28]}  Qb6 {[%clk 0:02:07]} 19. Qd2 {[%clk 0:02:21]}  Kd7 {[%clk 0:02:03]} 20. b4 {[%clk 0:01:35]}  Nf5 {[%clk 0:01:56]} 21. Rc5 {[%clk 0:01:33]}  a6 {[%clk 0:01:42]} 22. Qd3 {[%clk 0:01:17]}  Nfe7 {[%clk 0:01:38]} 23. Rhc1 {[%clk 0:01:13]}  g6 {[%clk 0:01:29]} 24. Qd2 {[%clk 0:01:08]}  Qa7 {[%clk 0:01:25]} 25. Nd3 {[%clk 0:01:03]}  b6 {[%clk 0:01:24]} 26. R5c3 {[%clk 0:01:01]}  Nf5 {[%clk 0:00:54]} 27. Qf4 {[%clk 0:00:54]}  Rh7 {[%clk 0:00:54]} 28. g4 {[%clk 0:00:42]}  Nfe7 {[%clk 0:00:53]} 29. a4 {[%clk 0:00:25]}  Nd8 {[%clk 0:00:52]} 30. a5 {[%clk 0:00:22]}  Rxc3 {[%clk 0:00:50]} 31. Rxc3 {[%clk 0:00:23]}  bxa5 {[%clk 0:00:45]} 32. Nc5+ {[%clk 0:00:21]}  Ke8 {[%clk 0:00:44]} 33. bxa5 {[%clk 0:00:21]}  Ndc6 {[%clk 0:00:41]} 34. Nb3 {[%clk 0:00:16]}  Qb7 {[%clk 0:00:39]} 35. Qc1 {[%clk 0:00:16]}  h5 {[%clk 0:00:33]} 36. Ng5 {[%clk 0:00:13]}  Rg7 {[%clk 0:00:33]} 37. f3 {[%clk 0:00:11]}  Qb5 {[%clk 0:00:30]} 38. Kg3 {[%clk 0:00:09]}  Kd7 {[%clk 0:00:17]} 39. Nc5+ {[%clk 0:00:09]}  Kc8 {[%clk 0:00:17]} 40. Rb3 {[%clk 0:00:06]}  Qxa5 {[%clk 0:00:16]} 41. Nd3 {[%clk 0:00:04]}  Kc7 {[%clk 0:00:12]} 42. Nf4 {[%clk 0:00:04]}  Rg8 {[%clk 0:00:12]} 43. Qb2 {[%clk 0:00:03]}  Rb8 {[%clk 0:00:12]} 44. Rxb8 {[%clk 0:00:03]}  Nxb8 {[%clk 0:00:12]} 45. Nfxe6+ {[%clk 0:00:03]}  fxe6 {[%clk 0:00:11]} 46. Nxe6+ {[%clk 0:00:04]}  Kc8 {[%clk 0:00:11]} 47. Qc2+ {[%clk 0:00:03]}  Nbc6 {[%clk 0:00:11]} 48. Nf4 {[%clk 0:00:03]}  Qe1+ {[%clk 0:00:11]} 49. Kg2 {[%clk 0:00:03]}  hxg4 {[%clk 0:00:12]} 50. Nxd5 {[%clk 0:00:03]}  gxf3+ {[%clk 0:00:09]} 51. Kxf3 {[%clk 0:00:02]}  Qh1+ {[%clk 0:00:08]} 52. Kg4 {[%clk 0:00:01]}  Qxd5 {[%clk 0:00:08]} 53. Qd3 {[%clk 0:00:02]}  Qxd4+ {[%clk 0:00:09]} 54. Qxd4 {[%clk 0:00:03]}  Nxd4 {[%clk 0:00:09]} 0-1


[Site "https://www.chess.com"]

[Event "Titled Tuesday Blitz May 03 Late 2022"]
[White "Ambartsumova, Karina"]
[Black "Pakleza, Zbigniew"]
[WhiteFideId "4166299"]
[BlackFideId "1119290"]
[WhiteElo "2262"]
[BlackElo "2467"]
[Result "0-1"]
[Round "04"]
[TimeControl "180+1"]
[Date "2022.05.03"]
[WhiteClock "0:00:07"]
[BlackClock "0:00:42"]

1. d4 {[%clk 0:03:00]}  d5 {[%clk 0:03:00]} 2. Nf3 {[%clk 0:03:00]}  Bf5 {[%clk 0:03:00]} 3. c4 {[%clk 0:02:59]}  e6 {[%clk 0:03:00]} 4. Nc3 {[%clk 0:02:52]}  c6 {[%clk 0:03:00]} 5. Qb3 {[%clk 0:02:41]}  Qb6 {[%clk 0:03:00]} 6. c5 {[%clk 0:02:41]}  Qc7 {[%clk 0:03:01]} 7. g3 {[%clk 0:02:40]}  Nd7 {[%clk 0:02:57]} 8. Bf4 {[%clk 0:02:40]}  Qc8 {[%clk 0:02:56]} 9. Nh4 {[%clk 0:02:40]}  Bg6 {[%clk 0:02:52]} 10. Nxg6 {[%clk 0:02:37]}  hxg6 {[%clk 0:02:53]} 11. Qc2 {[%clk 0:02:28]}  Ne7 {[%clk 0:02:33]} 12. Bg2 {[%clk 0:02:26]}  Nf5 {[%clk 0:02:33]} 13. Qd2 {[%clk 0:02:15]}  b6 {[%clk 0:02:31]} 14. cxb6 {[%clk 0:02:09]}  axb6 {[%clk 0:02:31]} 15. O-O {[%clk 0:02:09]}  Be7 {[%clk 0:02:27]} 16. e4 {[%clk 0:01:58]}  dxe4 {[%clk 0:02:25]} 17. Nxe4 {[%clk 0:01:53]}  Ra4 {[%clk 0:02:03]} 18. Rac1 {[%clk 0:01:18]}  Rxd4 {[%clk 0:01:52]} 19. Qe2 {[%clk 0:01:19]}  c5 {[%clk 0:01:47]} 20. Rfd1 {[%clk 0:01:05]}  O-O {[%clk 0:01:43]} 21. Qb5 {[%clk 0:00:54]}  Rxd1+ {[%clk 0:01:31]} 22. Rxd1 {[%clk 0:00:55]}  Nd4 {[%clk 0:01:32]} 23. Qc4 {[%clk 0:00:46]}  Rd8 {[%clk 0:01:15]} 24. Bd6 {[%clk 0:00:36]}  Bxd6 {[%clk 0:01:03]} 25. Nxd6 {[%clk 0:00:37]}  Qb8 {[%clk 0:01:04]} 26. Nb7 {[%clk 0:00:19]}  Ne5 {[%clk 0:00:58]} 27. Qa6 {[%clk 0:00:07]}  Ndf3+ {[%clk 0:00:43]} 28. Bxf3 {[%clk 0:00:07]}  Nxf3+ {[%clk 0:00:44]} 29. Kg2 {[%clk 0:00:07]}  Rxd1 {[%clk 0:00:42]} 0-1


[Site "https://www.chess.com"]

[Event "Titled Tuesday Blitz May 03 Late 2022"]
[White "Barria Zuniga, Daniel"]
[Black "Dubov, Daniil"]
[WhiteFideId "3400816"]
[BlackFideId "24126055"]
[WhiteElo "2414"]
[BlackElo "2791"]
[Result "0-1"]
[Round "04"]
[TimeControl "180+1"]
[Date "2022.05.03"]
[WhiteClock "0:00:04"]
[BlackClock "0:00:59"]

1. c4 {[%clk 0:03:00]}  c6 {[%clk 0:02:58]} 2. g3 {[%clk 0:03:01]}  d5 {[%clk 0:02:59]} 3. Bg2 {[%clk 0:03:01]}  d4 {[%clk 0:02:58]} 4. Nf3 {[%clk 0:03:01]}  c5 {[%clk 0:02:58]} 5. b4 {[%clk 0:02:59]}  Nf6 {[%clk 0:02:56]} 6. bxc5 {[%clk 0:02:57]}  Nc6 {[%clk 0:02:55]} 7. O-O {[%clk 0:02:57]}  e5 {[%clk 0:02:55]} 8. d3 {[%clk 0:02:57]}  Bxc5 {[%clk 0:02:54]} 9. Bg5 {[%clk 0:02:53]}  O-O {[%clk 0:02:53]} 10. Nbd2 {[%clk 0:02:52]}  Be7 {[%clk 0:02:52]} 11. a4 {[%clk 0:02:50]}  Bf5 {[%clk 0:02:49]} 12. a5 {[%clk 0:02:48]}  Rb8 {[%clk 0:02:46]} 13. Qa4 {[%clk 0:02:45]}  Bd7 {[%clk 0:02:43]} 14. Rfb1 {[%clk 0:02:34]}  Qc7 {[%clk 0:02:37]} 15. Ne1 {[%clk 0:02:11]}  h6 {[%clk 0:02:31]} 16. Bxf6 {[%clk 0:02:10]}  Bxf6 {[%clk 0:02:32]} 17. Nc2 {[%clk 0:02:01]}  Be7 {[%clk 0:02:31]} 18. Qa2 {[%clk 0:01:40]}  h5 {[%clk 0:02:24]} 19. Rb5 {[%clk 0:01:39]}  h4 {[%clk 0:02:21]} 20. Rab1 {[%clk 0:01:38]}  h3 {[%clk 0:02:20]} 21. Bd5 {[%clk 0:01:29]}  a6 {[%clk 0:02:11]} 22. Rb6 {[%clk 0:01:28]}  Bc5 {[%clk 0:02:10]} 23. Ne4 {[%clk 0:01:24]}  Bxb6 {[%clk 0:02:09]} 24. axb6 {[%clk 0:00:55]}  Qd8 {[%clk 0:02:09]} 25. c5 {[%clk 0:00:54]}  Ne7 {[%clk 0:01:58]} 26. Nd6 {[%clk 0:00:52]}  Nxd5 {[%clk 0:01:54]} 27. Qxd5 {[%clk 0:00:51]}  Qe7 {[%clk 0:01:47]} 28. Nb4 {[%clk 0:00:45]}  a5 {[%clk 0:01:46]} 29. Nc2 {[%clk 0:00:40]}  Bc6 {[%clk 0:01:45]} 30. Qc4 {[%clk 0:00:38]}  Rfd8 {[%clk 0:01:41]} 31. Ra1 {[%clk 0:00:34]}  Ra8 {[%clk 0:01:41]} 32. e3 {[%clk 0:00:30]}  dxe3 {[%clk 0:01:24]} 33. Nxe3 {[%clk 0:00:29]}  Rxd6 {[%clk 0:01:25]} 34. cxd6 {[%clk 0:00:21]}  Qxd6 {[%clk 0:01:24]} 35. Kf1 {[%clk 0:00:13]}  a4 {[%clk 0:01:21]} 36. Ke2 {[%clk 0:00:12]}  Qf6 {[%clk 0:01:11]} 37. Qg4 {[%clk 0:00:05]}  e4 {[%clk 0:01:07]} 38. d4 {[%clk 0:00:03]}  Qxd4 {[%clk 0:01:02]} 39. Rd1 {[%clk 0:00:03]}  Bb5+ {[%clk 0:01:01]} 40. Ke1 {[%clk 0:00:03]}  Qc3+ {[%clk 0:01:00]} 41. Rd2 {[%clk 0:00:04]}  a3 {[%clk 0:00:59]} 0-1


[Site "https://www.chess.com"]